[Event "*** Titled Tuesday Blitz"]
[Site "Chess.com"]
[Date "2021.02.09"]
[Round "2"]
[White "CM_rui"]
[Black "oykuince"]
[Result "1-0"]
[WhiteElo "2366"]
[BlackElo "1975"]
[TimeControl "180+1"]
[EndTime "10:17:16 PST"]
[Termination "CM_rui won by resignation"]

1. e4 {[%clk 0:03:00.9]} 1... c5 {[%clk 0:02:58.8]} 2. Nf3 {[%clk 0:03:00.7]}
2... e6 {[%clk 0:02:56.2]} 3. c4 {[%clk 0:03:00.7]} 3... Nc6 {[%clk 0:02:55.1]}
4. d4 {[%clk 0:03:00.5]} 4... cxd4 {[%clk 0:02:55.1]} 5. Nxd4 {[%clk 0:03:01.4]}
5... Nf6 {[%clk 0:02:52.8]} 6. Nc3 {[%clk 0:03:00.7]} 6... Bb4 {[%clk
0:02:52.4]} 7. Nxc6 {[%clk 0:03:01.2]} 7... bxc6 {[%clk 0:02:51.9]} 8. Bd3
{[%clk 0:03:00.4]} 8... d5 {[%clk 0:02:45.2]} 9. cxd5 {[%clk 0:03:01.3]} 9...
cxd5 {[%clk 0:02:44.6]} 10. Qa4+ {[%clk 0:03:00.9]} 10... Bd7 {[%clk 0:02:41.5]}
11. Qxb4 {[%clk 0:03:00.3]} 11... dxe4 {[%clk 0:02:39.1]} 12. Bxe4 {[%clk
0:02:47.9]} 12... Nxe4 {[%clk 0:02:36.8]} 13. Nxe4 {[%clk 0:02:48.8]} 13... Qe7
{[%clk 0:02:19.5]} 14. Qxe7+ {[%clk 0:02:30.8]} 14... Kxe7 {[%clk 0:02:15.6]}
15. Be3 {[%clk 0:02:31.7]} 15... f5 {[%clk 0:01:49.7]} 16. Bc5+ {[%clk
0:02:23.4]} 16... Kf7 {[%clk 0:01:48.1]} 17. Ng5+ {[%clk 0:02:18.4]} 17... Kf6
{[%clk 0:01:43.6]} 18. Nf3 {[%clk 0:02:17.6]} 18... Bc6 {[%clk 0:01:39.4]} 19.
Bd4+ {[%clk 0:02:14.7]} 19... Ke7 {[%clk 0:01:35.9]} 20. Ne5 {[%clk 0:02:14.1]}
20... Bd5 {[%clk 0:01:16.5]} 21. f4 {[%clk 0:02:10.7]} 21... Rhd8 {[%clk
0:01:09.9]} 22. Kf2 {[%clk 0:01:55.3]} 22... Rac8 {[%clk 0:01:01.8]} 23. Bc3
{[%clk 0:01:50.3]} 23... h6 {[%clk 0:00:34.2]} 24. Rhd1 {[%clk 0:01:44.9]} 24...
g5 {[%clk 0:00:26.4]} 25. g3 {[%clk 0:01:27.3]} 25... g4 {[%clk 0:00:18.5]} 26.
Rac1 {[%clk 0:01:17.7]} 26... h5 {[%clk 0:00:18]} 27. a3 {[%clk 0:01:07.4]}
27... a6 {[%clk 0:00:11.9]} 28. Ba5 {[%clk 0:00:55.1]} 28... Rxc1 {[%clk
0:00:10.6]} 29. Bxd8+ {[%clk 0:00:54.9]} 1-0

[Event "*** Titled Tuesday Blitz"]
[Site "Chess.com"]
[Date "2021.02.09"]
[Round "2"]
[White "Rsnr"]
[Black "SilviusTiberius"]
[Result "1-0"]
[WhiteElo "2771"]
[BlackElo "2495"]
[TimeControl "180+1"]
[EndTime "10:17:17 PST"]
[Termination "Rsnr won by resignation"]

1. d4 {[%clk 0:03:00.9]} 1... Nf6 {[%clk 0:02:58.8]} 2. c4 {[%clk 0:03:01.3]}
2... e6 {[%clk 0:02:59.3]} 3. Nf3 {[%clk 0:03:01.4]} 3... d5 {[%clk 0:02:59.9]}
4. e3 {[%clk 0:02:59.4]} 4... Be7 {[%clk 0:02:58.6]} 5. b3 {[%clk 0:02:59.5]}
5... O-O {[%clk 0:02:58.6]} 6. Bb2 {[%clk 0:03:00]} 6... c5 {[%clk 0:02:59.1]}
7. Bd3 {[%clk 0:03:00]} 7... Nc6 {[%clk 0:02:59.3]} 8. O-O {[%clk 0:03:00]} 8...
cxd4 {[%clk 0:02:59.7]} 9. exd4 {[%clk 0:03:00.8]} 9... b6 {[%clk 0:02:59.9]}
10. Nbd2 {[%clk 0:03:01.1]} 10... Bb7 {[%clk 0:03:00.5]} 11. Qe2 {[%clk
0:03:01.9]} 11... Re8 {[%clk 0:02:59.5]} 12. Rac1 {[%clk 0:03:02.4]} 12... Rc8
{[%clk 0:02:57.7]} 13. Rfd1 {[%clk 0:03:01.8]} 13... Bf8 {[%clk 0:02:50.9]} 14.
h3 {[%clk 0:03:01.5]} 14... g6 {[%clk 0:02:50.9]} 15. Qe3 {[%clk 0:02:38.1]}
15... Ne7 {[%clk 0:02:39.4]} 16. Ne5 {[%clk 0:02:32.6]} 16... Nf5 {[%clk
0:02:39.4]} 17. Bxf5 {[%clk 0:02:32.7]} 17... exf5 {[%clk 0:02:37.8]} 18. c5
{[%clk 0:01:18.2]} 18... Nd7 {[%clk 0:02:34.1]} 19. c6 {[%clk 0:01:00]} 19...
Bxc6 {[%clk 0:02:27.9]} 20. Rxc6 {[%clk 0:00:59.7]} 20... f6 {[%clk 0:01:56.8]}
21. Qf3 {[%clk 0:00:54.3]} 21... Nxe5 {[%clk 0:01:54]} 22. dxe5 {[%clk
0:00:45.8]} 22... Rxc6 {[%clk 0:01:54.2]} 23. exf6 {[%clk 0:00:46.7]} 23... Rce6
{[%clk 0:01:53.2]} 24. Kf1 {[%clk 0:00:35.3]} 24... Qd7 {[%clk 0:01:51.1]} 25.
g4 {[%clk 0:00:27.4]} 25... Bh6 {[%clk 0:01:41.4]} 26. Nc4 {[%clk 0:00:23.8]}
26... Re4 {[%clk 0:01:32.4]} 27. gxf5 {[%clk 0:00:12.8]} 27... Qb5 {[%clk
0:01:17.7]} 28. fxg6 {[%clk 0:00:09.6]} 28... hxg6 {[%clk 0:01:18.3]} 29. f7+
{[%clk 0:00:10.1]} 29... Kh7 {[%clk 0:01:13]} 30. fxe8=Q {[%clk 0:00:10.8]}
30... Qxe8 {[%clk 0:01:13.8]} 31. Nd6 {[%clk 0:00:10.4]} 31... Qe6 {[%clk
0:01:10.9]} 32. Nxe4 {[%clk 0:00:10.4]} 32... dxe4 {[%clk 0:01:11.8]} 33. Qg4
{[%clk 0:00:09.4]} 33... Qe8 {[%clk 0:01:06.9]} 34. Qd7+ {[%clk 0:00:09.4]}
34... Kg8 {[%clk 0:01:07.7]} 35. Qxe8+ {[%clk 0:00:09.6]} 1-0

[Event "*** Titled Tuesday Blitz"]
[Site "Chess.com"]
[Date "2021.02.09"]
[Round "2"]
[White "SirStrateg"]
[Black "Bigfish1995"]
[Result "0-1"]
[WhiteElo "2575"]
[BlackElo "2991"]
[TimeControl "180+1"]
[EndTime "10:17:18 PST"]
[Termination "Bigfish1995 won by resignation"]

1. d4 {[%clk 0:03:00.9]} 1... d5 {[%clk 0:02:25.8]} 2. Bf4 {[%clk 0:03:01.3]}
2... Nc6 {[%clk 0:02:21.2]} 3. e3 {[%clk 0:03:01.4]} 3... e5 {[%clk 0:02:12.6]}
4. dxe5 {[%clk 0:02:57.4]} 4... g5 {[%clk 0:02:11.9]} 5. Bg3 {[%clk 0:02:57.2]}
5... h5 {[%clk 0:02:12.4]} 6. h4 {[%clk 0:02:52.4]} 6... g4 {[%clk 0:02:02]} 7.
Nc3 {[%clk 0:02:51.2]} 7... Nge7 {[%clk 0:02:00.2]} 8. Bb5 {[%clk 0:02:45.2]}
8... Bg7 {[%clk 0:01:59.1]} 9. Nge2 {[%clk 0:02:36.1]} 9... Kf8 {[%clk
0:01:46.5]} 10. Bxc6 {[%clk 0:02:21.9]} 10... bxc6 {[%clk 0:01:47.4]} 11. Qd4
{[%clk 0:02:05.5]} 11... Rh6 {[%clk 0:01:41]} 12. e4 {[%clk 0:02:00.3]} 12...
Ba6 {[%clk 0:01:35.2]} 13. O-O-O {[%clk 0:01:48.9]} 13... Qc8 {[%clk 0:01:22.5]}
14. Nf4 {[%clk 0:01:42.3]} 14... Kg8 {[%clk 0:01:20.2]} 15. Rhe1 {[%clk
0:01:38.4]} 15... Qb7 {[%clk 0:01:06.5]} 16. exd5 {[%clk 0:01:35.4]} 16... cxd5
{[%clk 0:01:03.8]} 17. Nfxd5 {[%clk 0:01:23.5]} 17... Nf5 {[%clk 0:01:03.3]} 18.
Qb4 {[%clk 0:01:20.4]} 18... Nxg3 {[%clk 0:01:00]} 19. Qxb7 {[%clk 0:01:18]}
19... Bxb7 {[%clk 0:00:59.3]} 20. fxg3 {[%clk 0:01:18]} 20... Re8 {[%clk
0:00:59.8]} 21. Nxc7 {[%clk 0:01:13.3]} 21... Rxe5 {[%clk 0:00:58.2]} 22. Rd8+
{[%clk 0:01:12.8]} 22... Kh7 {[%clk 0:00:57.5]} 23. Rxe5 {[%clk 0:01:12.4]}
23... Bxe5 {[%clk 0:00:56.6]} 24. Rd7 {[%clk 0:01:10.9]} 24... Bc6 {[%clk
0:00:50.1]} 25. Rxf7+ {[%clk 0:01:05.2]} 25... Kg8 {[%clk 0:00:49.2]} 26. Re7
{[%clk 0:01:05]} 26... Bxg3 {[%clk 0:00:47.5]} 27. N7d5 {[%clk 0:00:59.8]} 27...
Bxh4 {[%clk 0:00:47.1]} 28. Rxa7 {[%clk 0:00:56.8]} 28... Bg5+ {[%clk 0:00:47]}
29. Kb1 {[%clk 0:00:53.9]} 29... Re6 {[%clk 0:00:46.6]} 30. b4 {[%clk
0:00:49.6]} 30... h4 {[%clk 0:00:43]} 31. b5 {[%clk 0:00:48.1]} 31... Bxd5
{[%clk 0:00:41.5]} 32. Nxd5 {[%clk 0:00:48]} 32... h3 {[%clk 0:00:42]} 33. gxh3
{[%clk 0:00:47.7]} 33... gxh3 {[%clk 0:00:42.9]} 34. Ra3 {[%clk 0:00:45.1]}
34... Re1+ {[%clk 0:00:42]} 35. Kb2 {[%clk 0:00:45.1]} 35... Bc1+ {[%clk
0:00:42.8]} 36. Kb3 {[%clk 0:00:45.6]} 36... Bxa3 {[%clk 0:00:43.7]} 37. Kxa3
{[%clk 0:00:42.6]} 37... h2 {[%clk 0:00:43.8]} 38. b6 {[%clk 0:00:43.2]} 38...
h1=Q {[%clk 0:00:43.1]} 0-1

[Event "*** Titled Tuesday Blitz"]
[Site "Chess.com"]
[Date "2021.02.09"]
[Round "2"]
[White "GP9isback23"]
[Black "Angry_Twin"]
[Result "0-1"]
[WhiteElo "2513"]
[BlackElo "2826"]
[TimeControl "180+1"]
[EndTime "10:17:19 PST"]
[Termination "Angry_Twin won by resignation"]

1. d4 {[%clk 0:02:59]} 1... Nf6 {[%clk 0:02:55.2]} 2. Nf3 {[%clk 0:02:58.5]}
2... d5 {[%clk 0:02:53.4]} 3. c4 {[%clk 0:02:57.7]} 3... e6 {[%clk 0:02:51]} 4.
Nc3 {[%clk 0:02:57.1]} 4... dxc4 {[%clk 0:02:50.8]} 5. e3 {[%clk 0:02:55.6]}
5... a6 {[%clk 0:02:50.1]} 6. a4 {[%clk 0:02:55.1]} 6... Bb4 {[%clk 0:02:48.8]}
7. Bxc4 {[%clk 0:02:55.7]} 7... O-O {[%clk 0:02:48.9]} 8. O-O {[%clk 0:02:55.9]}
8... b6 {[%clk 0:02:48.2]} 9. Qe2 {[%clk 0:02:55.9]} 9... Bb7 {[%clk 0:02:48.3]}
10. Rd1 {[%clk 0:02:56.5]} 10... Nbd7 {[%clk 0:02:47.7]} 11. Bd2 {[%clk
0:02:53.5]} 11... Qe7 {[%clk 0:02:46.8]} 12. Rac1 {[%clk 0:02:53.4]} 12... e5
{[%clk 0:02:38.3]} 13. Nxe5 {[%clk 0:02:43.5]} 13... Nxe5 {[%clk 0:02:38.2]} 14.
dxe5 {[%clk 0:02:44.4]} 14... Qxe5 {[%clk 0:02:39.1]} 15. Be1 {[%clk 0:02:16.6]}
15... h6 {[%clk 0:02:38]} 16. f3 {[%clk 0:02:13.2]} 16... Rfe8 {[%clk
0:02:34.6]} 17. Bf2 {[%clk 0:02:13.6]} 17... c6 {[%clk 0:02:18.7]} 18. Bxf7+
{[%clk 0:02:04.1]} 18... Kxf7 {[%clk 0:01:59.2]} 19. Qc4+ {[%clk 0:02:04]} 19...
Kg6 {[%clk 0:01:56.3]} 20. Qxb4 {[%clk 0:02:03.4]} 20... b5 {[%clk 0:01:56.8]}
21. e4 {[%clk 0:01:53.3]} 21... Rad8 {[%clk 0:01:56.5]} 22. Bb6 {[%clk
0:01:36.9]} 22... Rxd1+ {[%clk 0:01:53.3]} 23. Rxd1 {[%clk 0:01:37.8]} 23... Re6
{[%clk 0:01:44.3]} 24. Qc5 {[%clk 0:01:28.4]} 24... Qf4 {[%clk 0:01:39.4]} 25.
Qe3 {[%clk 0:01:23.7]} 25... Qh4 {[%clk 0:01:31.6]} 26. g3 {[%clk 0:01:20.3]}
26... Qh5 {[%clk 0:01:30.7]} 27. Re1 {[%clk 0:01:13.7]} 27... b4 {[%clk
0:01:25]} 28. Nd1 {[%clk 0:01:06.4]} 28... Nd5 {[%clk 0:01:23.9]} 29. Qf2 {[%clk
0:01:02.2]} 29... Nf6 {[%clk 0:01:13.9]} 30. Bd4 {[%clk 0:01:00.4]} 30... c5
{[%clk 0:01:13.5]} 31. Bxc5 {[%clk 0:00:59]} 31... Bxe4 {[%clk 0:01:10.9]} 32.
fxe4 {[%clk 0:00:56.5]} 32... Nxe4 {[%clk 0:01:11.8]} 33. Qd4 {[%clk 0:00:51.8]}
33... Nxc5 {[%clk 0:01:06.3]} 34. Rxe6+ {[%clk 0:00:50.5]} 34... Nxe6 {[%clk
0:01:06.3]} 35. Qe4+ {[%clk 0:00:50.8]} 35... Qf5 {[%clk 0:01:05.7]} 36. Nf2
{[%clk 0:00:49.7]} 36... Qxe4 {[%clk 0:01:03.3]} 37. Nxe4 {[%clk 0:00:50.6]}
37... Kf5 {[%clk 0:01:04]} 38. Nf2 {[%clk 0:00:36.7]} 38... a5 {[%clk
0:01:01.6]} 39. Kf1 {[%clk 0:00:33.9]} 39... Nc5 {[%clk 0:01:01.7]} 40. Ke2
{[%clk 0:00:29.9]} 40... Nxa4 {[%clk 0:01:01.9]} 41. b3 {[%clk 0:00:29.7]} 41...
Nc5 {[%clk 0:01:01.3]} 0-1

[Event "*** Titled Tuesday Blitz"]
[Site "Chess.com"]
[Date "2021.02.09"]
[Round "2"]
[White "SARGISMV"]
[Black "jacky72"]
[Result "0-1"]
[WhiteElo "2427"]
[BlackElo "2686"]
[TimeControl "180+1"]
[EndTime "10:17:20 PST"]
[Termination "jacky72 won by resignation"]

1. d4 {[%clk 0:03:00.9]} 1... Nf6 {[%clk 0:02:59.4]} 2. c4 {[%clk 0:03:00.9]}
2... c6 {[%clk 0:02:59.5]} 3. Nc3 {[%clk 0:03:01.4]} 3... d5 {[%clk 0:02:59.9]}
4. Nf3 {[%clk 0:03:01.9]} 4... a6 {[%clk 0:03:00.1]} 5. c5 {[%clk 0:03:01.6]}
5... g6 {[%clk 0:02:59]} 6. Bf4 {[%clk 0:03:02.1]} 6... Bg7 {[%clk 0:02:59.1]}
7. e3 {[%clk 0:03:02.4]} 7... O-O {[%clk 0:02:59.5]} 8. h3 {[%clk 0:03:02.9]}
8... Bf5 {[%clk 0:02:59.4]} 9. g4 {[%clk 0:03:02.8]} 9... Be4 {[%clk 0:02:59.3]}
10. Nxe4 {[%clk 0:03:02.5]} 10... Nxe4 {[%clk 0:02:59.5]} 11. Bd3 {[%clk
0:03:00.9]} 11... Nd7 {[%clk 0:02:57.2]} 12. Qc2 {[%clk 0:03:01]} 12... Qa5+
{[%clk 0:02:49]} 13. Kf1 {[%clk 0:02:59.3]} 13... e5 {[%clk 0:02:44.1]} 14. Nxe5
{[%clk 0:02:40.8]} 14... Bxe5 {[%clk 0:02:41.8]} 15. Bxe5 {[%clk 0:02:36.1]}
15... Nexc5 {[%clk 0:02:31.4]} 16. Bd6 {[%clk 0:02:28.1]} 16... Nxd3 {[%clk
0:02:28]} 17. Bxf8 {[%clk 0:02:26.8]} 17... Nxf2 {[%clk 0:02:10.1]} 18. Qxf2
{[%clk 0:02:26.4]} 18... Rxf8 {[%clk 0:02:10.7]} 19. Kg2 {[%clk 0:02:23.4]}
19... f5 {[%clk 0:02:10.9]} 20. g5 {[%clk 0:02:14.8]} 20... Re8 {[%clk 0:01:59]}
21. a3 {[%clk 0:02:08.9]} 21... Re4 {[%clk 0:01:58.4]} 22. Rae1 {[%clk
0:02:01.7]} 22... Qd8 {[%clk 0:01:53.1]} 23. Qg3 {[%clk 0:01:50.1]} 23... Nb6
{[%clk 0:01:53]} 24. b3 {[%clk 0:01:47.7]} 24... Qe7 {[%clk 0:01:51.7]} 25. Rhf1
{[%clk 0:01:43.1]} 25... Kg7 {[%clk 0:01:43.3]} 26. a4 {[%clk 0:01:37.8]} 26...
Nc8 {[%clk 0:01:40]} 27. Rf4 {[%clk 0:01:34.2]} 27... Re6 {[%clk 0:01:39.6]} 28.
h4 {[%clk 0:01:30.2]} 28... Nd6 {[%clk 0:01:40]} 29. h5 {[%clk 0:01:18.2]} 29...
Ne4 {[%clk 0:01:40.4]} 30. h6+ {[%clk 0:01:17.5]} 30... Kf7 {[%clk 0:01:39.4]}
31. Rxe4 {[%clk 0:01:11.5]} 31... Rxe4 {[%clk 0:01:39.1]} 32. Kf2 {[%clk
0:01:02.9]} 32... f4 {[%clk 0:01:33.6]} 33. Qf3 {[%clk 0:00:54.7]} 33... Qxg5
{[%clk 0:01:33.4]} 34. Re2 {[%clk 0:00:40.2]} 34... Qxh6 {[%clk 0:01:24.7]} 35.
Ke1 {[%clk 0:00:31.6]} 35... Qh4+ {[%clk 0:01:19.6]} 36. Kd2 {[%clk 0:00:28.5]}
36... Qg3 {[%clk 0:01:20.1]} 37. Qh1 {[%clk 0:00:21.1]} 37... h5 {[%clk
0:01:18.1]} 38. exf4 {[%clk 0:00:16.6]} 38... Rxd4+ {[%clk 0:01:17.9]} 39. Kc2
{[%clk 0:00:16.1]} 39... Qd3+ {[%clk 0:01:17.3]} 40. Kc1 {[%clk 0:00:16.4]}
40... Qxe2 {[%clk 0:01:17.2]} 0-1

[Event "*** Titled Tuesday Blitz"]
[Site "Chess.com"]
[Date "2021.02.09"]
[Round "2"]
[White "Jungle_Jaguar"]
[Black "Ladislav1969"]
[Result "1-0"]
[WhiteElo "2627"]
[BlackElo "2318"]
[TimeControl "180+1"]
[EndTime "10:17:22 PST"]
[Termination "Jungle_Jaguar won by checkmate"]

1. b3 {[%clk 0:03:00.9]} 1... Nf6 {[%clk 0:02:58.8]} 2. Bb2 {[%clk 0:02:59.4]}
2... d5 {[%clk 0:02:59]} 3. Nf3 {[%clk 0:02:57]} 3... c5 {[%clk 0:02:59]} 4. e3
{[%clk 0:02:56.9]} 4... g6 {[%clk 0:02:55.7]} 5. Be2 {[%clk 0:02:49.1]} 5... Bg7
{[%clk 0:02:55.4]} 6. O-O {[%clk 0:02:49.3]} 6... O-O {[%clk 0:02:55.1]} 7. c4
{[%clk 0:02:49.8]} 7... dxc4 {[%clk 0:02:38.7]} 8. bxc4 {[%clk 0:02:48.1]} 8...
Bf5 {[%clk 0:02:31]} 9. d3 {[%clk 0:02:46.1]} 9... Nc6 {[%clk 0:02:27.3]} 10.
Qb3 {[%clk 0:02:40.5]} 10... Qc7 {[%clk 0:02:17.4]} 11. Nc3 {[%clk 0:02:38.7]}
11... Rfd8 {[%clk 0:02:08.8]} 12. Rfd1 {[%clk 0:02:36.9]} 12... Nb4 {[%clk
0:02:05]} 13. a3 {[%clk 0:02:19.4]} 13... Nc6 {[%clk 0:01:46]} 14. e4 {[%clk
0:02:00.5]} 14... Bg4 {[%clk 0:01:44.8]} 15. Nd5 {[%clk 0:02:00.6]} 15... Nxd5
{[%clk 0:01:38.3]} 16. exd5 {[%clk 0:01:54.1]} 16... Bxf3 {[%clk 0:01:38.2]} 17.
Bxf3 {[%clk 0:01:51.3]} 17... Nd4 {[%clk 0:01:30.3]} 18. Bxd4 {[%clk 0:01:50.3]}
18... Bxd4 {[%clk 0:01:30]} 19. Ra2 {[%clk 0:01:50.7]} 19... Rd6 {[%clk
0:01:23.8]} 20. Re2 {[%clk 0:01:48.1]} 20... Re8 {[%clk 0:01:09.4]} 21. Rde1
{[%clk 0:01:47.2]} 21... Kf8 {[%clk 0:01:09.5]} 22. Qc2 {[%clk 0:01:45.1]} 22...
Qa5 {[%clk 0:01:06.8]} 23. Qc1 {[%clk 0:01:44.1]} 23... Bg7 {[%clk 0:00:48.2]}
24. Qf4 {[%clk 0:01:41.5]} 24... Rf6 {[%clk 0:00:41.8]} 25. Qc1 {[%clk
0:01:35.8]} 25... Ra6 {[%clk 0:00:40.4]} 26. Qf4 {[%clk 0:01:30.4]} 26... Rf6
{[%clk 0:00:39.7]} 27. Qh4 {[%clk 0:01:19.3]} 27... Qxa3 {[%clk 0:00:33]} 28. d6
{[%clk 0:01:05.9]} 28... Rxd6 {[%clk 0:00:19.3]} 29. Rxe7 {[%clk 0:01:05.6]}
29... Red8 {[%clk 0:00:17.3]} 30. Qf4 {[%clk 0:00:53.7]} 30... h5 {[%clk
0:00:13.6]} 31. Qxf7# {[%clk 0:00:52.8]} 1-0

[Event "*** Titled Tuesday Blitz"]
[Site "Chess.com"]
[Date "2021.02.09"]
[Round "2"]
[White "davigator"]
[Black "Dahamdi_Sanudula"]
[Result "1/2-1/2"]
[WhiteElo "2345"]
[BlackElo "1680"]
[TimeControl "180+1"]
[EndTime "10:17:28 PST"]
[Termination "Game drawn by repetition"]

1. e4 {[%clk 0:03:00.9]} 1... d5 {[%clk 0:02:59.4]} 2. exd5 {[%clk 0:03:00]}
2... Qxd5 {[%clk 0:02:59.4]} 3. Nc3 {[%clk 0:02:52.4]} 3... Qa5 {[%clk
0:02:59.2]} 4. Bc4 {[%clk 0:02:51.4]} 4... Nf6 {[%clk 0:02:58.7]} 5. d3 {[%clk
0:02:50.4]} 5... c6 {[%clk 0:02:58.1]} 6. Ne2 {[%clk 0:02:49.2]} 6... Bg4 {[%clk
0:02:56.1]} 7. f3 {[%clk 0:02:48.3]} 7... Bd7 {[%clk 0:02:55.7]} 8. Bd2 {[%clk
0:02:47.9]} 8... Qc7 {[%clk 0:02:54.1]} 9. Bf4 {[%clk 0:02:45.4]} 9... Qd8
{[%clk 0:02:52.3]} 10. Qd2 {[%clk 0:02:42.2]} 10... Bf5 {[%clk 0:02:51.8]} 11.
O-O-O {[%clk 0:02:38.8]} 11... e6 {[%clk 0:02:52]} 12. g4 {[%clk 0:02:35]} 12...
Bg6 {[%clk 0:02:50.4]} 13. Be5 {[%clk 0:02:31.8]} 13... Bd6 {[%clk 0:02:49.2]}
14. Bxd6 {[%clk 0:02:25.7]} 14... Qxd6 {[%clk 0:02:48.6]} 15. Nf4 {[%clk
0:02:25.4]} 15... Nbd7 {[%clk 0:02:46.6]} 16. h4 {[%clk 0:02:23]} 16... e5
{[%clk 0:02:28.1]} 17. Nxg6 {[%clk 0:02:22]} 17... hxg6 {[%clk 0:02:27.3]} 18.
Rde1 {[%clk 0:02:19.1]} 18... Nd5 {[%clk 0:02:21.3]} 19. Ne4 {[%clk 0:02:15]}
19... Qc7 {[%clk 0:02:16]} 20. Ng5 {[%clk 0:02:10.5]} 20... N7b6 {[%clk
0:02:12]} 21. Bb3 {[%clk 0:02:09.1]} 21... O-O-O {[%clk 0:02:10.3]} 22. Qe2
{[%clk 0:01:55.8]} 22... Rhe8 {[%clk 0:02:00.8]} 23. Qe4 {[%clk 0:01:54.5]}
23... Kb8 {[%clk 0:01:52]} 24. c3 {[%clk 0:01:32.1]} 24... Qd7 {[%clk
0:01:37.6]} 25. Bc2 {[%clk 0:01:30.1]} 25... f5 {[%clk 0:01:26.7]} 26. Qe2
{[%clk 0:01:16.2]} 26... Nf4 {[%clk 0:01:26.3]} 27. Qh2 {[%clk 0:01:13.6]} 27...
Nxd3+ {[%clk 0:01:06.3]} 28. Bxd3 {[%clk 0:01:13.2]} 28... Qxd3 {[%clk
0:01:06.3]} 29. Rxe5 {[%clk 0:01:11.9]} 29... Rxe5 {[%clk 0:01:06.1]} 30. Qxe5+
{[%clk 0:01:12]} 30... Ka8 {[%clk 0:01:05.5]} 31. Re1 {[%clk 0:00:36.5]} 31...
Qd2+ {[%clk 0:00:34.5]} 32. Kb1 {[%clk 0:00:36.5]} 32... Qd3+ {[%clk 0:00:32.5]}
33. Kc1 {[%clk 0:00:36.1]} 33... Qd2+ {[%clk 0:00:28.9]} 34. Kb1 {[%clk
0:00:36.3]} 34... Qd3+ {[%clk 0:00:29.2]} 35. Kc1 {[%clk 0:00:36.6]} 1/2-1/2

[Event "*** Titled Tuesday Blitz"]
[Site "Chess.com"]
[Date "2021.02.09"]
[Round "2"]
[White "AlexSuv"]
[Black "Kobalia"]
[Result "0-1"]
[WhiteElo "2468"]
[BlackElo "2693"]
[TimeControl "180+1"]
[EndTime "10:17:29 PST"]
[Termination "Kobalia won by resignation"]

1. d4 {[%clk 0:03:00.9]} 1... d5 {[%clk 0:02:58.7]} 2. c4 {[%clk 0:03:00.6]}
2... c6 {[%clk 0:02:59.1]} 3. Nc3 {[%clk 0:03:00.6]} 3... dxc4 {[%clk
0:02:58.6]} 4. e3 {[%clk 0:02:54.8]} 4... b5 {[%clk 0:02:57.3]} 5. a4 {[%clk
0:02:54.9]} 5... b4 {[%clk 0:02:57.5]} 6. Na2 {[%clk 0:02:54.8]} 6... e6 {[%clk
0:02:55.1]} 7. Bxc4 {[%clk 0:02:54.5]} 7... a5 {[%clk 0:02:55.3]} 8. Nf3 {[%clk
0:02:52.6]} 8... Nf6 {[%clk 0:02:54.7]} 9. O-O {[%clk 0:02:52.1]} 9... Ba6
{[%clk 0:02:51.2]} 10. Qe2 {[%clk 0:02:50]} 10... Bxc4 {[%clk 0:02:45.8]} 11.
Qxc4 {[%clk 0:02:49.3]} 11... Qd5 {[%clk 0:02:45.8]} 12. Qe2 {[%clk 0:02:30.8]}
12... c5 {[%clk 0:02:44.9]} 13. dxc5 {[%clk 0:02:29.9]} 13... Bxc5 {[%clk
0:02:43.7]} 14. Rd1 {[%clk 0:02:29.9]} 14... Qb7 {[%clk 0:02:40.1]} 15. Bd2
{[%clk 0:02:28.1]} 15... O-O {[%clk 0:02:38.4]} 16. Nc1 {[%clk 0:02:28.1]} 16...
Nbd7 {[%clk 0:02:34.4]} 17. Nb3 {[%clk 0:02:27.6]} 17... Bb6 {[%clk 0:02:23]}
18. Be1 {[%clk 0:02:13]} 18... Nc5 {[%clk 0:02:12.5]} 19. Nxc5 {[%clk
0:02:05.6]} 19... Bxc5 {[%clk 0:02:13.4]} 20. Rac1 {[%clk 0:02:06]} 20... Rac8
{[%clk 0:02:12.4]} 21. Ne5 {[%clk 0:02:02.6]} 21... Ba7 {[%clk 0:02:03.7]} 22.
Nc4 {[%clk 0:01:50]} 22... Rc5 {[%clk 0:02:00.3]} 23. Nd6 {[%clk 0:01:43.9]}
23... Qc6 {[%clk 0:01:58.2]} 24. Rxc5 {[%clk 0:01:41.9]} 24... Bxc5 {[%clk
0:01:56.2]} 25. Nb5 {[%clk 0:01:41.3]} 25... Bb6 {[%clk 0:01:51.5]} 26. f3
{[%clk 0:01:26.5]} 26... Nd5 {[%clk 0:01:46.1]} 27. Bf2 {[%clk 0:01:24.9]} 27...
h6 {[%clk 0:01:37.2]} 28. g3 {[%clk 0:01:22]} 28... Rc8 {[%clk 0:01:30.8]} 29.
e4 {[%clk 0:01:19.8]} 29... Ne7 {[%clk 0:01:25]} 30. Na7 {[%clk 0:00:58.7]}
30... Bxa7 {[%clk 0:01:22.6]} 31. Bxa7 {[%clk 0:00:59.6]} 31... Ng6 {[%clk
0:01:17.6]} 32. Bd4 {[%clk 0:00:53.9]} 32... Qxa4 {[%clk 0:01:11]} 33. h4 {[%clk
0:00:46.5]} 33... Rd8 {[%clk 0:01:08.6]} 34. h5 {[%clk 0:00:46.5]} 34... Ne5
{[%clk 0:01:04.8]} 35. Rd2 {[%clk 0:00:44.9]} 35... Nc6 {[%clk 0:00:46.1]} 36.
Be3 {[%clk 0:00:44.3]} 36... Rxd2 {[%clk 0:00:44.9]} 37. Qxd2 {[%clk 0:00:45.2]}
37... Qb3 {[%clk 0:00:44.3]} 38. g4 {[%clk 0:00:43.7]} 38... a4 {[%clk
0:00:43.2]} 39. g5 {[%clk 0:00:44.1]} 39... hxg5 {[%clk 0:00:41.7]} 40. Bxg5
{[%clk 0:00:45]} 40... a3 {[%clk 0:00:41.2]} 41. bxa3 {[%clk 0:00:45.9]} 41...
bxa3 {[%clk 0:00:41.3]} 42. h6 {[%clk 0:00:46]} 42... a2 {[%clk 0:00:40.6]} 0-1